{"text_format":"1","workbook":"xlsx","n_sheets":189,"sheets":["Bienvenue","Sources","Modele_CALE","Modele_CALS","Modele_CEN","Modele_ENC","Modele_MIC","Modele_PCE","Modele_PIP","Modele_PDP","Modele_REV","Modele_SON","Modele_Synthese_PDP","Synthese des centrifugeuses","Synthese des enceintes","Synthese des microscopes","Synthese des pipettes","Synthese des réveils&minuteurs","Synthese des sondes","Deconta a suppr","ENC_AG1","ENC_MC8","ENC_BC3","ENC_CHR1","ENC_E-07","ENC_IR1","ENC_E-06","ENC_E-15","ENC_HR1","ENC_IR2","ENC_MC1","ENC_MC16","ENC_MC4","ENC_MC5","ENC_MC7","ENC_Frigo1","ENC_IC1","ENC_IC4","ENC_MC15","ENC_MC6","ENC_MC2","ENC_HC1","ENC_E-14","ENC_Frigo2","ENC_HR2","ENC_IR4","ENC_MC10","ENC_BR3","ENC_E-04","ENC_HR17","ENC_E-02","ENC_IC3","ENC_E-09","ENC_E-13","ENC_BC1","ENC_E-18","ENC_HR16","ENC_E-16","ENC_BC2","ENC_C1","ENC_E-10","ENC_E-17","ENC_E-11","ENC_E-19","ENC_BR2","ENC_CHR2","ENC_E-12","ENC_E-03","ENC_E-08","ENC_E-05","ENC_C16","ENC_BR8","ENC_E-01","ENC_BR6","ENC_CHC2","ENC_BR4","ENC_BR7","ENC_BR1","ENC_MR13","ENC_MR12","ENC_MR11","ENC_MR1","ENC_MR10","ENC_MC9","ENC_MR14","ENC_MR4","ENC_MR15","ENC_MR16","ENC_MR17","ENC_MR2","ENC_MR8","ENC_MR5","ENC_MR6","ENC_MR9","ENC_PFC1","ENC_PC1","ENC_PC2","ENC_PFC2","ENC_PR1","ENC_PR2","ENC_R1-14","ENC_R16","ENC_R16 ou Top 115","ENC_R17","ENC_R2-14","Modele_CALE (2)","PCE_Pièce 01","PCE_Pièce 14","PCE_Pièce 16","PCE_Pièce 17","PCE_Pièce 18","PCE_Pièce 21","PCE_Pièce 25","PCE_Pièce 26","PCE_Pièce 31","PCE_Pièce 32","PCE_Pièce 33","PCE_Pièce 33BK","PCE_Pièce 33Hyg","PCE_Pièce 34","PCE_Pièce 35","PCE_Pièce 51","PCE_Pièce 53","PDP_2016","SON_003","SON_3577000000851","SON_3677000000875","SON_3777000000882","SON_3877000000868","SON_B1_BJE_52572 2013-1","SON_E17C","SON_E17D","SON_E17E","SON_E17F","SON_E17G","SON_E17H","SON_E17I","SON_E17J","SON_E17K","SON_E17L","SON_E17M","SON_E17N","SON_E17P","SON_E17Q","SON_E3B4","SON_E3B5","SON_E3B6","SON_E3B7","SON_E3B8","SON_E3B9","SON_E3BB","SON_E3BC","SON_E3BD","SON_E3BE","SON_E3BF","SON_E3BG","SON_E3BH","SON_E3BI","SON_E3BJ","SON_E3BK","SON_E3BL","SON_E3BM","SON_E3BN","SON_E3BP","SON_E3BQ","SON_E3BR","SON_E3BS","SON_E3BT","SON_E3BU","SON_E3BV","SON_E3BW","SON_E3BX","SON_E3BY","SON_E3BZ","SON_IETHX3ND","SON_IETHX3NE","SON_P058","SON_P05Q","SON_P0E5","SON_SETH 0009","SON_SETH0010","_Conforme","_Conformité_CEN","_Décontamination","_ENC_Conforme sous restriction","_Non_Conforme","_Pdf","_Zone_Impression","_Zone_ImpressionSousrestriction"],"not_rendered":{"charts":0,"images":2,"macros":0,"external_links":1,"defined_names":2,"comments":0,"pivot_tables":0},"unopened":[],"bounds":{"document_bytes":16777216,"sheet_cells":100000,"rows_first":2000,"rows_last":500,"rows_between":2000,"halvings":0,"cell_chars":16384,"cell_head_chars":4096},"cells_cut":0,"cells_raw":0,"read":"whole","date_system":"1900"}

{"sheet":"Bienvenue","index":0,"n_rows":0,"n_cols":0,"rows_kept":0,"cut":false,"hidden":false,"merged":[]}

{"sheet":"Sources","index":1,"n_rows":122,"n_cols":19,"rows_kept":122,"cut":false,"hidden":false,"merged":[[67,4,67,5],[0,0,2,1],[0,2,5,16],[0,17,2,18],[3,0,5,1],[3,17,3,18],[4,17,4,18],[5,17,5,18]]}
[null,null,"Suivi métrologique des équipements - Sources -",null,null,null,null,null,null,null,null,null,null,null,null,null,null,"Formulaire d'enregistrement"]
[]
[]
["01- LABORATOIRE DE BIOLOGIE MEDICALE",null,null,null,null,null,null,null,null,null,null,null,null,null,null,null,null,"Réf.: LB/FE/"]
[null,null,null,null,null,null,null,null,null,null,null,null,null,null,null,null,null,"Version : 2"]
[null,null,null,null,null,null,null,null,null,null,null,null,null,null,null,null,null,"date d'application : 01/03/2016"]
["Date de début :"]
["Date de fin : "]
[]
["Secteur","Localisation","Localisation 2","Type","Aménagement interne","Contenu","Critique","Conformité","Centrifugeuse","Sonde","Emplacement Sonde","Enceinte","Pipette Prêt","Cone","Microscope","Oculaire","Objectif","Reveil","Agent"]
["Biochimie-Pharmacologie","Bactériologie","Couloir Biochimie","Bain thermostaté","Clayettes","Boites GEI","Oui","Conforme",{"$f":"'[1]Synthese des centrifugeuses'!C11","v":0},{"$f":"'[1]Synthese des sondes'!C11","v":3},"HGAv",{"$f":"'[1]Synthese des enceintes'!C11","v":"AG1"},{"$f":"[1]PDP_2016!D11","v":0},"Sartorius 10µL 790010",{"$f":"+'[1]Synthese des microscopes'!C11:C33","v":"04B118"},"Aucun","Emplacement Vide",{"$f":"'[1]Synthese des réveils&minuteurs'!C11","v":"Chimie hémato 1"},"Bazin Dominique"]
["Hématologie-Dépôt de sang","Biochimie","Couloir Microbiologie","Combiné","Coffre","Calibrants","Non","Non Conforme",{"$f":"'[1]Synthese des centrifugeuses'!C12","v":0},{"$f":"'[1]Synthese des sondes'!C12","v":3577000000851},"HGAr",{"$f":"'[1]Synthese des enceintes'!C12","v":"BC1"},{"$f":"#REF!","v":{"$error":"#REF!"}},"Sartorius 200µL 790204",{"$f":"+'[1]Synthese des microscopes'!C12:C34","v":"04B119"},"Grille,matrice de 10 x 10","x2,5",{"$f":"'[1]Synthese des réveils&minuteurs'!C12","v":"Cytologie 1"},"Bazin Patricia"]
["Laboratoire de Biologie Médicale","Biologie Moléculaire","Laboratoire de Biologie Médicale","Congélateur","Compartiments","Contrôles",null,"Soumis au résultat de la cartographie",{"$f":"'[1]Synthese des centrifugeuses'!C13","v":0},{"$f":"'[1]Synthese des sondes'!C13","v":3677000000875},"HDAv",{"$f":"'[1]Synthese des enceintes'!C13","v":"BC2"},{"$f":"#REF!","v":{"$error":"#REF!"}},"Sartorius 1000µL 791004",{"$f":"+'[1]Synthese des microscopes'!C13:C35","v":"07B315"},"Réticule en croix ","x10",{"$f":"'[1]Synthese des réveils&minuteurs'!C13","v":"Hémostase 1"},"Besancon Muriel"]
["Microbiologie","BK","Non Déterminé","Etuve","Grilles","Culots Globulaires",null,"Reformé(e )",{"$f":"'[1]Synthese des centrifugeuses'!C14","v":0},{"$f":"'[1]Synthese des sondes'!C14","v":3777000000882},"HDAr",{"$f":"'[1]Synthese des enceintes'!C14","v":"BC3"},{"$f":"#REF!","v":{"$error":"#REF!"}},"Sartorius 5000 µL 780300",{"$f":"+'[1]Synthese des microscopes'!C14:C36","v":"08B157"},"Réticule linéaire, avec croix (graduations : 0-100) ","x20",{"$f":"'[1]Synthese des réveils&minuteurs'!C14","v":"Hémostase 2"},"Kerma Nabila"]
["Non Déterminé","Chimie-Hématologie","Pièce 01","Pièce","Tiroirs","Echantillons",null,"Perdu(e )",{"$f":"'[1]Synthese des centrifugeuses'!C15","v":0},{"$f":"'[1]Synthese des sondes'!C15","v":3877000000868},"MID",{"$f":"'[1]Synthese des enceintes'!C15","v":"BR1"},{"$f":"#REF!","v":{"$error":"#REF!"}},"Finntip 10 mL",{"$f":"+'[1]Synthese des microscopes'!C15:C37","v":"09B105"},null,"x40",{"$f":"'[1]Synthese des réveils&minuteurs'!C15","v":"Hémostase 3"},"Mahabo Elise"]
[null,"Cytologie","Pièce 10","Réfrigérateur","Clayettes / Tiroirs","Echantillons / Réactifs",null,"En réparation",{"$f":"'[1]Synthese des centrifugeuses'!C16","v":0},{"$f":"'[1]Synthese des sondes'!C16","v":"B1_BJE_52572 2013-1"},"BGAv",{"$f":"'[1]Synthese des enceintes'!C16","v":"BR2"},{"$f":"#REF!","v":{"$error":"#REF!"}},"Finntip 25 µL",{"$f":"+'[1]Synthese des microscopes'!C16:C38","v":"10B094"},null,"x50",{"$f":"'[1]Synthese des réveils&minuteurs'!C16","v":"Immuno 1"},"Maiz Jocelyne"]
[null,"Cytometrie de flux","Pièce 14","- - - - - - - - - - - - ",null,"Médicaments",null,"Sortie du parc",{"$f":"'[1]Synthese des centrifugeuses'!C17","v":0},{"$f":"'[1]Synthese des sondes'!C17","v":"E17C"},"BGAr",{"$f":"'[1]Synthese des enceintes'!C17","v":"BR3"},{"$f":"#REF!","v":{"$error":"#REF!"}},"Finntip 50 µL",{"$f":"+'[1]Synthese des microscopes'!C17:C39","v":"12B111"},null,"x100",{"$f":"'[1]Synthese des réveils&minuteurs'!C17","v":"Immuno 2"},"Marcal Adelaïde"]
[null,"Dépôt de sang Médicalisé","Pièce 16","Centrale Vigitemp",null,"Plaquettes",null,"- - - - - - - - - - - - - - - - - - - - - - - - - ",{"$f":"'[1]Synthese des centrifugeuses'!C18","v":0},{"$f":"'[1]Synthese des sondes'!C18","v":"E17D"},"BDAv",{"$f":"'[1]Synthese des enceintes'!C18","v":"BR4"},{"$f":"#REF!","v":{"$error":"#REF!"}},null,{"$f":"+'[1]Synthese des microscopes'!C18:C40","v":"14B402"},null,null,{"$f":"'[1]Synthese des réveils&minuteurs'!C18","v":"Immuno 3"},"Paillusseau Christine"]
[null,"Hémostase","Pièce 17","Lecteur Vigilog",null,"Plasma Frais Congelé",null,"Conforme sous restriction",{"$f":"'[1]Synthese des centrifugeuses'!C19","v":0},{"$f":"'[1]Synthese des sondes'!C19","v":"E17E"},"BDAr",{"$f":"'[1]Synthese des enceintes'!C19","v":"BR6"},{"$f":"#REF!","v":{"$error":"#REF!"}},null,{"$f":"+'[1]Synthese des microscopes'!C19:C41","v":"94B00435"},null,null,{"$f":"'[1]Synthese des réveils&minuteurs'!C19","v":"Immuno 4"}]
[null,"Hormonologie","Pièce 18","Module Radio",null,"Réactifs",null,"Conforme sous restriction 1 Zone",{"$f":"'[1]Synthese des centrifugeuses'!C20","v":0},{"$f":"'[1]Synthese des sondes'!C20","v":"E17F"},"---------------",{"$f":"'[1]Synthese des enceintes'!C20","v":"BR7"},{"$f":"#REF!","v":{"$error":"#REF!"}},null,{"$f":"+'[1]Synthese des microscopes'!C20:C42","v":"94B00437"},null,null,{"$f":"'[1]Synthese des réveils&minuteurs'!C20","v":"Immuno-Hématologie 1"}]
[null,"Hygiène","Pièce 21","Sonde",null,"Réactifs / Contrôles",null,"Conforme sous restriction 2 Zones",{"$f":"'[1]Synthese des centrifugeuses'!C21","v":0},{"$f":"'[1]Synthese des sondes'!C21","v":"E17G"},"Fav",{"$f":"'[1]Synthese des enceintes'!C21","v":"BR8"},{"$f":"#REF!","v":{"$error":"#REF!"}},null,{"$f":"+'[1]Synthese des microscopes'!C21:C43","v":"94B00441"},null,null,{"$f":"'[1]Synthese des réveils&minuteurs'!C21","v":0}]
[null,"Immuno-Hématologie","Pièce 23","Vigilog",null,"Réactifs / Contrôles / Calibrants",null,"Conforme sous restriction 3 Zones",{"$f":"'[1]Synthese des centrifugeuses'!C22","v":0},{"$f":"'[1]Synthese des sondes'!C22","v":"E17H"},"Far",{"$f":"'[1]Synthese des enceintes'!C22","v":"C1"},{"$f":"#REF!","v":{"$error":"#REF!"}},null,{"$f":"+'[1]Synthese des microscopes'!C22:C44","v":"94B00443"},null,null,{"$f":"'[1]Synthese des réveils&minuteurs'!C22","v":0}]
[null,"Immunologie","Pièce 24","- - - - - - - - - - - - ",null,"Sérothèque",null,"Conforme sous restriction 4 Zones",{"$f":"'[1]Synthese des centrifugeuses'!C23","v":0},{"$f":"'[1]Synthese des sondes'!C23","v":"E17I"},"Fb",{"$f":"'[1]Synthese des enceintes'!C23","v":"C16"},{"$f":"#REF!","v":{"$error":"#REF!"}},null,{"$f":"+'[1]Synthese des microscopes'!C23:C45","v":"94B00982"},null,null,{"$f":"'[1]Synthese des réveils&minuteurs'!C23","v":0}]
[null,"Laboratoire de Biologie Médicale","Pièce 25","Centrifugeuse",null,"Verrerie",null,"Conforme sous restriction 5 Zones",{"$f":"'[1]Synthese des centrifugeuses'!C24","v":0},{"$f":"'[1]Synthese des sondes'!C24","v":"E17J"},"Fh",{"$f":"'[1]Synthese des enceintes'!C24","v":"CHC2"},{"$f":"#REF!","v":{"$error":"#REF!"}},null,{"$f":"+'[1]Synthese des microscopes'!C24:C46","v":"94B01025"}]
[null,"Laverie","Pièce 26","- - - - - - - - - - - - ",null,null,null,"Conforme sous restriction 6 Zones",{"$f":"'[1]Synthese des centrifugeuses'!C25","v":0},{"$f":"'[1]Synthese des sondes'!C25","v":"E17K"},"Fg",{"$f":"'[1]Synthese des enceintes'!C25","v":"CHR1"},{"$f":"#REF!","v":{"$error":"#REF!"}},null,{"$f":"+'[1]Synthese des microscopes'!C25:C47","v":"94B01047"}]
[null,"Microscopie fluorécense","Pièce 30","Pipette Fixe",null,null,null,"Conforme sous restriction 7 Zones",{"$f":"'[1]Synthese des centrifugeuses'!C26","v":0},{"$f":"'[1]Synthese des sondes'!C26","v":"E17L"},"Fd",{"$f":"'[1]Synthese des enceintes'!C26","v":"CHR2"},{"$f":"#REF!","v":{"$error":"#REF!"}},null,{"$f":"+'[1]Synthese des microscopes'!C26:C48","v":"94B01997"}]
[null,"Non Déterminé","Pièce 31","Pipette Variable",null,null,null,"Conforme sous restriction 8 Zones",{"$f":"'[1]Synthese des centrifugeuses'!C27","v":0},{"$f":"'[1]Synthese des sondes'!C27","v":"E17M"},null,{"$f":"'[1]Synthese des enceintes'!C27","v":"E-01"},{"$f":"#REF!","v":{"$error":"#REF!"}},null,{"$f":"+'[1]Synthese des microscopes'!C27:C49","v":"95B00042"}]
[null,"Parasitologie","Pièce 32","Multipette",null,null,null,"Conforme sous restriction 9 Zones",{"$f":"'[1]Synthese des centrifugeuses'!C28","v":0},{"$f":"'[1]Synthese des sondes'!C28","v":"E17N"},null,{"$f":"'[1]Synthese des enceintes'!C28","v":"E-02"},{"$f":"#REF!","v":{"$error":"#REF!"}},null,{"$f":"+'[1]Synthese des microscopes'!C28:C50","v":"95B00086"}]
[null,"Pharmacie","Pièce 33","- - - - - - - - - - - - ",null,null,null,"Conforme sous restriction 10 Zones",{"$f":"'[1]Synthese des centrifugeuses'!C29","v":0},{"$f":"'[1]Synthese des sondes'!C29","v":"E17P"},null,{"$f":"'[1]Synthese des enceintes'!C29","v":"E-03"},{"$f":"#REF!","v":{"$error":"#REF!"}},null,{"$f":"+'[1]Synthese des microscopes'!C29:C51","v":"96B00209"}]
[null,"Réception","Pièce 33 BK","Minuteur",null,null,null,"Conforme sous restriction 11 Zones",{"$f":"'[1]Synthese des centrifugeuses'!C30","v":0},{"$f":"'[1]Synthese des sondes'!C30","v":"E17Q"},null,{"$f":"'[1]Synthese des enceintes'!C30","v":"E-04"},{"$f":"#REF!","v":{"$error":"#REF!"}},null,{"$f":"+'[1]Synthese des microscopes'!C30:C52","v":"97B00197"}]
[null,"Réserve","Pièce 33 Hygiène","Reveil",null,null,null,"Conforme sous restriction 12 Zones",{"$f":"'[1]Synthese des centrifugeuses'!C31","v":0},{"$f":"'[1]Synthese des sondes'!C31","v":"E3B4"},null,{"$f":"'[1]Synthese des enceintes'!C31","v":"E-05"},{"$f":"#REF!","v":{"$error":"#REF!"}},null,{"$f":"+'[1]Synthese des microscopes'!C31:C53","v":"98B00187"}]
[null,"Sérologie","Pièce 33 Urine","- - - - - - - - - - - - ",null,null,null,"Conforme sous restriction 13 Zones",{"$f":"'[1]Synthese des centrifugeuses'!C32","v":0},{"$f":"'[1]Synthese des sondes'!C32","v":"E3B5"},null,{"$f":"'[1]Synthese des enceintes'!C32","v":"E-06"},{"$f":"#REF!","v":{"$error":"#REF!"}}]
[null,"Back Up","Pièce 34","Microscope",null,null,null,"Conforme sous restriction 14 Zones",{"$f":"'[1]Synthese des centrifugeuses'!C33","v":0},{"$f":"'[1]Synthese des sondes'!C33","v":"E3B6"},null,{"$f":"'[1]Synthese des enceintes'!C33","v":"E-07"},{"$f":"#REF!","v":{"$error":"#REF!"}}]
[null,null,"Pièce 35",null,null,null,null,"Conforme sous restriction 15 Zones",{"$f":"'[1]Synthese des centrifugeuses'!C34","v":0},{"$f":"'[1]Synthese des sondes'!C34","v":"E3B7"},null,{"$f":"'[1]Synthese des enceintes'!C34","v":"E-08"},{"$f":"#REF!","v":{"$error":"#REF!"}}]
[null,null,"Pièce 42",null,null,null,null,null,{"$f":"'[1]Synthese des centrifugeuses'!C35","v":0},{"$f":"'[1]Synthese des sondes'!C35","v":"E3B8"},null,{"$f":"'[1]Synthese des enceintes'!C35","v":"E-09"},{"$f":"#REF!","v":{"$error":"#REF!"}}]
[null,null,"Pièce 50",null,null,null,null,null,{"$f":"'[1]Synthese des centrifugeuses'!C36","v":0},{"$f":"'[1]Synthese des sondes'!C36","v":"E3B9"},null,{"$f":"'[1]Synthese des enceintes'!C36","v":"E-10"},{"$f":"#REF!","v":{"$error":"#REF!"}}]
[null,null,"Pièce 51",null,null,null,null,null,{"$f":"'[1]Synthese des centrifugeuses'!C37","v":0},{"$f":"'[1]Synthese des sondes'!C37","v":"E3BB"},null,{"$f":"'[1]Synthese des enceintes'!C37","v":"E-11"},{"$f":"#REF!","v":{"$error":"#REF!"}}]
[null,null,"Pièce 53",null,null,null,null,null,{"$f":"'[1]Synthese des centrifugeuses'!C38","v":0},{"$f":"'[1]Synthese des sondes'!C38","v":"E3BC"},null,{"$f":"'[1]Synthese des enceintes'!C38","v":"E-12"},{"$f":"#REF!","v":{"$error":"#REF!"}}]
[null,null,null,null,null,null,null,null,{"$f":"'[1]Synthese des centrifugeuses'!C39","v":0},{"$f":"'[1]Synthese des sondes'!C39","v":"E3BD"},null,{"$f":"'[1]Synthese des enceintes'!C39","v":"E-13"},{"$f":"#REF!","v":{"$error":"#REF!"}}]
[null,null,null,null,null,null,null,null,{"$f":"'[1]Synthese des centrifugeuses'!C40","v":0},{"$f":"'[1]Synthese des sondes'!C40","v":"E3BE"},null,{"$f":"'[1]Synthese des enceintes'!C40","v":"E-14"},{"$f":"#REF!","v":{"$error":"#REF!"}}]
[null,null,null,null,null,null,null,null,{"$f":"'[1]Synthese des centrifugeuses'!C41","v":0},{"$f":"'[1]Synthese des sondes'!C41","v":"E3BF"},null,{"$f":"'[1]Synthese des enceintes'!C41","v":"E-15"},{"$f":"#REF!","v":{"$error":"#REF!"}}]
[null,null,null,null,null,null,null,null,{"$f":"'[1]Synthese des centrifugeuses'!C42","v":0},{"$f":"'[1]Synthese des sondes'!C42","v":"E3BG"},null,{"$f":"'[1]Synthese des enceintes'!C42","v":"E-16"},{"$f":"#REF!","v":{"$error":"#REF!"}}]
[null,null,null,null,null,null,null,null,{"$f":"'[1]Synthese des centrifugeuses'!C43","v":0},{"$f":"'[1]Synthese des sondes'!C43","v":"E3BH"},null,{"$f":"'[1]Synthese des enceintes'!C43","v":"E-17"},{"$f":"#REF!","v":{"$error":"#REF!"}}]
[null,null,null,null,null,null,null,null,{"$f":"'[1]Synthese des centrifugeuses'!C44","v":0},{"$f":"'[1]Synthese des sondes'!C44","v":"E3BI"},null,{"$f":"'[1]Synthese des enceintes'!C44","v":"E-18"},{"$f":"#REF!","v":{"$error":"#REF!"}}]
[null,null,null,null,null,null,null,null,{"$f":"'[1]Synthese des centrifugeuses'!C45","v":0},{"$f":"'[1]Synthese des sondes'!C45","v":"E3BJ"},null,{"$f":"'[1]Synthese des enceintes'!C45","v":"E-19"},{"$f":"#REF!","v":{"$error":"#REF!"}}]
[null,null,null,null,null,null,null,null,{"$f":"'[1]Synthese des centrifugeuses'!C46","v":0},{"$f":"'[1]Synthese des sondes'!C46","v":"E3BK"},null,{"$f":"'[1]Synthese des enceintes'!C46","v":"Frigo1"},{"$f":"#REF!","v":{"$error":"#REF!"}}]
[null,null,null,null,null,null,null,null,{"$f":"'[1]Synthese des centrifugeuses'!C47","v":0},{"$f":"'[1]Synthese des sondes'!C47","v":"E3BL"},null,{"$f":"'[1]Synthese des enceintes'!C47","v":"Frigo2"},{"$f":"#REF!","v":{"$error":"#REF!"}}]
[null,null,null,null,null,null,null,null,{"$f":"'[1]Synthese des centrifugeuses'!C48","v":0},{"$f":"'[1]Synthese des sondes'!C48","v":"E3BM"},null,{"$f":"'[1]Synthese des enceintes'!C48","v":"HC1"},{"$f":"#REF!","v":{"$error":"#REF!"}}]
[null,null,null,null,null,null,null,null,{"$f":"'[1]Synthese des centrifugeuses'!C49","v":0},{"$f":"'[1]Synthese des sondes'!C49","v":"E3BN"},null,{"$f":"'[1]Synthese des enceintes'!C49","v":"HR1"},{"$f":"#REF!","v":{"$error":"#REF!"}}]
[null,null,null,null,null,null,null,null,{"$f":"'[1]Synthese des centrifugeuses'!C50","v":0},{"$f":"'[1]Synthese des sondes'!C50","v":"E3BP"},null,{"$f":"'[1]Synthese des enceintes'!C50","v":"HR16"},{"$f":"#REF!","v":{"$error":"#REF!"}}]
[null,null,null,null,null,null,null,null,null,{"$f":"'[1]Synthese des sondes'!C51","v":"E3BQ"},null,{"$f":"'[1]Synthese des enceintes'!C51","v":"HR17"}]
[null,null,null,null,null,null,null,null,null,{"$f":"'[1]Synthese des sondes'!C52","v":"E3BR"},null,{"$f":"'[1]Synthese des enceintes'!C52","v":"HR2"}]
[null,null,null,null,null,null,null,null,null,{"$f":"'[1]Synthese des sondes'!C53","v":"E3BS"},null,{"$f":"'[1]Synthese des enceintes'!C53","v":"IC1"}]
[null,null,null,null,null,null,null,null,null,{"$f":"'[1]Synthese des sondes'!C54","v":"E3BT"},null,{"$f":"'[1]Synthese des enceintes'!C54","v":"IC3"}]
[null,null,null,null,null,null,null,null,null,{"$f":"'[1]Synthese des sondes'!C55","v":"E3BU"},null,{"$f":"'[1]Synthese des enceintes'!C55","v":"IC4"}]
[null,null,null,null,null,null,null,null,null,{"$f":"'[1]Synthese des sondes'!C56","v":"E3BV"},null,{"$f":"'[1]Synthese des enceintes'!C56","v":"IR1"}]
[null,null,null,null,null,null,null,null,null,{"$f":"'[1]Synthese des sondes'!C57","v":"E3BW"},null,{"$f":"'[1]Synthese des enceintes'!C57","v":"IR2"}]
[null,null,null,null,null,null,null,null,null,{"$f":"'[1]Synthese des sondes'!C58","v":"E3BX"},null,{"$f":"'[1]Synthese des enceintes'!C58","v":"IR4"}]
[null,null,null,null,null,null,null,null,null,{"$f":"'[1]Synthese des sondes'!C59","v":"E3BY"},null,{"$f":"'[1]Synthese des enceintes'!C59","v":"MC1"}]
[null,null,null,null,null,null,null,null,null,{"$f":"'[1]Synthese des sondes'!C60","v":"E3BZ"},null,{"$f":"'[1]Synthese des enceintes'!C60","v":"MC10"}]
[null,null,null,null,null,null,null,null,null,{"$f":"'[1]Synthese des sondes'!C61","v":"IETHX3ND"},null,{"$f":"'[1]Synthese des enceintes'!C61","v":"MC15"}]
[null,null,null,null,null,null,null,null,null,{"$f":"'[1]Synthese des sondes'!C62","v":"IETHX3NE"},null,{"$f":"'[1]Synthese des enceintes'!C62","v":"MC16"}]
[null,null,null,null,null,null,null,null,null,{"$f":"'[1]Synthese des sondes'!C63","v":"P058"},null,{"$f":"'[1]Synthese des enceintes'!C63","v":"MC2"}]
[null,null,null,null,null,null,null,null,null,{"$f":"'[1]Synthese des sondes'!C64","v":"P05Q"},null,{"$f":"'[1]Synthese des enceintes'!C64","v":"MC4"}]
[null,null,null,null,null,null,null,null,null,{"$f":"'[1]Synthese des sondes'!C65","v":"P0E5"},null,{"$f":"'[1]Synthese des enceintes'!C65","v":"MC5"}]
[null,null,null,null,null,null,null,null,null,{"$f":"'[1]Synthese des sondes'!C66","v":"SETH 0009"},null,{"$f":"'[1]Synthese des enceintes'!C66","v":"MC6"}]
[null,null,null,null,null,null,null,null,null,{"$f":"'[1]Synthese des sondes'!C67","v":"SETH0010"},null,{"$f":"'[1]Synthese des enceintes'!C67","v":"MC7"}]
[null,null,null,null,null,null,null,null,null,{"$f":"'[1]Synthese des sondes'!C68","v":0},null,{"$f":"'[1]Synthese des enceintes'!C68","v":"MC8"}]
[null,null,null,null,null,null,null,null,null,null,null,{"$f":"'[1]Synthese des enceintes'!C69","v":"MC9"}]
[null,null,null,null,null,null,null,null,null,null,null,{"$f":"'[1]Synthese des enceintes'!C70","v":"MR1"}]
[null,null,null,null,null,null,null,null,null,null,null,{"$f":"'[1]Synthese des enceintes'!C71","v":"MR10"}]
[null,null,null,null,null,null,null,null,null,null,null,{"$f":"'[1]Synthese des enceintes'!C72","v":"MR11"}]
[null,null,null,null,null,null,null,null,null,null,null,{"$f":"'[1]Synthese des enceintes'!C73","v":"MR12"}]
[null,null,null,null,null,null,null,null,null,null,null,{"$f":"'[1]Synthese des enceintes'!C74","v":"MR13"}]
[null,null,null,null,null,null,null,null,null,null,null,{"$f":"'[1]Synthese des enceintes'!C75","v":"MR14"}]
[null,null,null,null,null,null,null,null,null,null,null,{"$f":"'[1]Synthese des enceintes'!C76","v":"MR15"}]
[null,null,null,null,null,null,null,null,null,null,null,{"$f":"'[1]Synthese des enceintes'!C77","v":"MR16"}]
[null,null,null,null,null,null,null,null,null,null,null,{"$f":"'[1]Synthese des enceintes'!C78","v":"MR17"}]
[null,null,null,null,null,null,null,null,null,null,null,{"$f":"'[1]Synthese des enceintes'!C79","v":"MR2"}]
[null,null,null,null,null,null,null,null,null,null,null,{"$f":"'[1]Synthese des enceintes'!C80","v":"MR4"}]
[null,null,null,null,null,null,null,null,null,null,null,{"$f":"'[1]Synthese des enceintes'!C81","v":"MR5"}]
[null,null,null,null,null,null,null,null,null,null,null,{"$f":"'[1]Synthese des enceintes'!C82","v":"MR6"}]
[null,null,null,null,null,null,null,null,null,null,null,{"$f":"'[1]Synthese des enceintes'!C83","v":"MR8"}]
[null,null,null,null,null,null,null,null,null,null,null,{"$f":"'[1]Synthese des enceintes'!C84","v":"MR9"}]
[null,null,null,null,null,null,null,null,null,null,null,{"$f":"'[1]Synthese des enceintes'!C85","v":"PC1"}]
[null,null,null,null,null,null,null,null,null,null,null,{"$f":"'[1]Synthese des enceintes'!C86","v":"PC2"}]
[null,null,null,null,null,null,null,null,null,null,null,{"$f":"'[1]Synthese des enceintes'!C87","v":"PFC1"}]
[null,null,null,null,null,null,null,null,null,null,null,{"$f":"'[1]Synthese des enceintes'!C88","v":"PFC2"}]
[null,null,null,null,null,null,null,null,null,null,null,{"$f":"'[1]Synthese des enceintes'!C89","v":"Pièce 01"}]
[null,null,null,null,null,null,null,null,null,null,null,{"$f":"'[1]Synthese des enceintes'!C90","v":"Pièce 14"}]
[null,null,null,null,null,null,null,null,null,null,null,{"$f":"'[1]Synthese des enceintes'!C91","v":"Pièce 16"}]
[null,null,null,null,null,null,null,null,null,null,null,{"$f":"'[1]Synthese des enceintes'!C92","v":"Pièce 17"}]
[null,null,null,null,null,null,null,null,null,null,null,{"$f":"'[1]Synthese des enceintes'!C93","v":"Pièce 18"}]
[null,null,null,null,null,null,null,null,null,null,null,{"$f":"'[1]Synthese des enceintes'!C94","v":"Pièce 21"}]
[null,null,null,null,null,null,null,null,null,null,null,{"$f":"'[1]Synthese des enceintes'!C95","v":"Pièce 25"}]
[null,null,null,null,null,null,null,null,null,null,null,{"$f":"'[1]Synthese des enceintes'!C96","v":"Pièce 26"}]
[null,null,null,null,null,null,null,null,null,null,null,{"$f":"'[1]Synthese des enceintes'!C97","v":"Pièce 31"}]
[null,null,null,null,null,null,null,null,null,null,null,{"$f":"'[1]Synthese des enceintes'!C98","v":"Pièce 32"}]
[null,null,null,null,null,null,null,null,null,null,null,{"$f":"'[1]Synthese des enceintes'!C99","v":"Pièce 33"}]
[null,null,null,null,null,null,null,null,null,null,null,{"$f":"'[1]Synthese des enceintes'!C100","v":"Pièce 33BK"}]
[null,null,null,null,null,null,null,null,null,null,null,{"$f":"'[1]Synthese des enceintes'!C101","v":"Pièce 33Hyg"}]
[null,null,null,null,null,null,null,null,null,null,null,{"$f":"'[1]Synthese des enceintes'!C102","v":"Pièce 34"}]
[null,null,null,null,null,null,null,null,null,null,null,{"$f":"'[1]Synthese des enceintes'!C103","v":"Pièce 35"}]
[null,null,null,null,null,null,null,null,null,null,null,{"$f":"'[1]Synthese des enceintes'!C104","v":"Pièce 51"}]
[null,null,null,null,null,null,null,null,null,null,null,{"$f":"'[1]Synthese des enceintes'!C105","v":"Pièce 53"}]
[null,null,null,null,null,null,null,null,null,null,null,{"$f":"'[1]Synthese des enceintes'!C106","v":"PR1"}]
[null,null,null,null,null,null,null,null,null,null,null,{"$f":"'[1]Synthese des enceintes'!C107","v":"PR2"}]
[null,null,null,null,null,null,null,null,null,null,null,{"$f":"'[1]Synthese des enceintes'!C108","v":"R1-14"}]
[null,null,null,null,null,null,null,null,null,null,null,{"$f":"'[1]Synthese des enceintes'!C109","v":"R16"}]
[null,null,null,null,null,null,null,null,null,null,null,{"$f":"'[1]Synthese des enceintes'!C110","v":"R16 ou Top 115"}]
[null,null,null,null,null,null,null,null,null,null,null,{"$f":"'[1]Synthese des enceintes'!C111","v":"R17"}]
[null,null,null,null,null,null,null,null,null,null,null,{"$f":"'[1]Synthese des enceintes'!C112","v":"R2-14"}]
[null,null,null,null,null,null,null,null,null,null,null,{"$f":"'[1]Synthese des enceintes'!C113","v":0}]
[null,null,null,null,null,null,null,null,null,null,null,{"$f":"'[1]Synthese des enceintes'!C114","v":0}]
[null,null,null,null,null,null,null,null,null,null,null,{"$f":"'[1]Synthese des enceintes'!C115","v":0}]
[null,null,null,null,null,null,null,null,null,null,null,{"$f":"'[1]Synthese des enceintes'!C116","v":0}]
[null,null,null,null,null,null,null,null,null,null,null,{"$f":"'[1]Synthese des enceintes'!C117","v":0}]
[null,null,null,null,null,null,null,null,null,null,null,{"$f":"'[1]Synthese des enceintes'!C118","v":0}]
[null,null,null,null,null,null,null,null,null,null,null,{"$f":"'[1]Synthese des enceintes'!C119","v":0}]
[null,null,null,null,null,null,null,null,null,null,null,{"$f":"'[1]Synthese des enceintes'!C120","v":0}]
[null,null,null,null,null,null,null,null,null,null,null,{"$f":"'[1]Synthese des enceintes'!C121","v":0}]
[null,null,null,null,null,null,null,null,null,null,null,{"$f":"'[1]Synthese des enceintes'!C122","v":0}]

{"sheet":"Modele_CALE","index":2,"n_rows":79,"n_cols":16,"rows_kept":79,"cut":false,"hidden":false,"merged":[[56,3,56,10],[77,3,77,10],[0,0,2,3],[0,4,5,10],[0,11,2,13],[3,0,5,3],[47,0,49,3],[47,4,52,10],[47,11,49,13],[50,0,52,3]]}
[null,null,null,null,"Suivi métrologique des équipements - Calendrier du suivi métrologique des équipements -",null,null,null,null,null,null,"Formulaire d'enregistrement "]
[]
[]
["LABORATOIRE DE BIOLOGIE MEDICALE",null,null,null,null,null,null,null,null,null,null,"Réf. : LB/FE/141"]
[null,null,null,null,null,null,null,null,null,null,null,"Version : 2"]
[null,null,null,null,null,null,null,null,null,null,null,"date d'application : 01/03/2016"]
[]
[]
[]
[null,null,"Année"]
[]
[null,null,1,2,3,4,5,6,7,8,9,10,11,12]
[null,null,"Janvier","Février","Mars","Avril","Mai","Juin","Juillet","Août","Septembre","Octobre","Novembre","Décembre",null,"Fériés"]
[null,1,{"$f":"DATE(annee_choix,C$12,$B14)","v":"1900-01-01"},"1900-02-01","1900-03-01","1900-04-01","1900-05-01","1900-06-01","1900-07-01","1900-08-01","1900-09-01","1900-10-01","1900-11-01","1900-12-01",null,{"$f":"DATE(annee_choix,1,1)","v":"1900-01-01"}]
[null,2,"1900-01-02","1900-02-02","1900-03-02","1900-04-02","1900-05-02","1900-06-02","1900-07-02","1900-08-02","1900-09-02","1900-10-02","1900-11-02","1900-12-02",null,{"$f":"DATE(annee_choix,5,1)","v":"1900-05-01"}]
[null,3,"1900-01-03","1900-02-03","1900-03-03","1900-04-03","1900-05-03","1900-06-03","1900-07-03","1900-08-03","1900-09-03","1900-10-03","1900-11-03","1900-12-03",null,{"$f":"DATE(annee_choix,5,8)","v":"1900-05-08"}]
[null,4,"1900-01-04","1900-02-04","1900-03-04","1900-04-04","1900-05-04","1900-06-04","1900-07-04","1900-08-04","1900-09-04","1900-10-04","1900-11-04","1900-12-04",null,{"$f":"DATE(annee_choix,7,14)","v":"1900-07-14"}]
[null,5,"1900-01-05","1900-02-05","1900-03-05","1900-04-05","1900-05-05","1900-06-05","1900-07-05","1900-08-05","1900-09-05","1900-10-05","1900-11-05","1900-12-05",null,{"$f":"DATE(annee_choix,8,15)","v":"1900-08-15"}]
[null,6,"1900-01-06","1900-02-06","1900-03-06","1900-04-06","1900-05-06","1900-06-06","1900-07-06","1900-08-06","1900-09-06","1900-10-06","1900-11-06","1900-12-06",null,{"$f":"DATE(annee_choix,11,1)","v":"1900-11-01"}]
[null,7,"1900-01-07","1900-02-07","1900-03-07","1900-04-07","1900-05-07","1900-06-07","1900-07-07","1900-08-07","1900-09-07","1900-10-07","1900-11-07","1900-12-07",null,{"$f":"DATE(annee_choix,11,11)","v":"1900-11-11"}]
[null,8,"1900-01-08","1900-02-08","1900-03-08","1900-04-08","1900-05-08","1900-06-08","1900-07-08","1900-08-08","1900-09-08","1900-10-08","1900-11-08","1900-12-08",null,{"$f":"DATE(annee_choix,12,25)","v":"1900-12-25"}]
[null,9,"1900-01-09","1900-02-09","1900-03-09","1900-04-09","1900-05-09","1900-06-09","1900-07-09","1900-08-09","1900-09-09","1900-10-09","1900-11-09","1900-12-09"]
[null,10,"1900-01-10","1900-02-10","1900-03-10","1900-04-10","1900-05-10","1900-06-10","1900-07-10","1900-08-10","1900-09-10","1900-10-10","1900-11-10","1900-12-10"]
[null,11,{"$f":"DATE(annee_choix,C$12,$B24)","v":"1900-01-11"},"1900-02-11","1900-03-11","1900-04-11","1900-05-11","1900-06-11","1900-07-11","1900-08-11","1900-09-11","1900-10-11","1900-11-11","1900-12-11"]
[null,12,"1900-01-12","1900-02-12","1900-03-12","1900-04-12","1900-05-12","1900-06-12","1900-07-12","1900-08-12","1900-09-12","1900-10-12","1900-11-12","1900-12-12"]
[null,13,"1900-01-13","1900-02-13","1900-03-13","1900-04-13","1900-05-13","1900-06-13","1900-07-13","1900-08-13","1900-09-13","1900-10-13","1900-11-13","1900-12-13"]
[null,14,"1900-01-14","1900-02-14","1900-03-14","1900-04-14","1900-05-14","1900-06-14","1900-07-14","1900-08-14","1900-09-14","1900-10-14","1900-11-14","1900-12-14"]
[null,15,"1900-01-15","1900-02-15","1900-03-15","1900-04-15","1900-05-15","1900-06-15","1900-07-15","1900-08-15","1900-09-15","1900-10-15","1900-11-15","1900-12-15"]
[null,16,"1900-01-16","1900-02-16","1900-03-16","1900-04-16","1900-05-16","1900-06-16","1900-07-16","1900-08-16","1900-09-16","1900-10-16","1900-11-16","1900-12-16"]
[null,17,"1900-01-17","1900-02-17","1900-03-17","1900-04-17","1900-05-17","1900-06-17","1900-07-17","1900-08-17","1900-09-17","1900-10-17","1900-11-17","1900-12-17"]
[null,18,"1900-01-18","1900-02-18","1900-03-18","1900-04-18","1900-05-18","1900-06-18","1900-07-18","1900-08-18","1900-09-18","1900-10-18","1900-11-18","1900-12-18"]
[null,19,"1900-01-19","1900-02-19","1900-03-19","1900-04-19","1900-05-19","1900-06-19","1900-07-19","1900-08-19","1900-09-19","1900-10-19","1900-11-19","1900-12-19"]
[null,20,"1900-01-20","1900-02-20","1900-03-20","1900-04-20","1900-05-20","1900-06-20","1900-07-20","1900-08-20","1900-09-20","1900-10-20","1900-11-20","1900-12-20"]
[null,21,{"$f":"DATE(annee_choix,C$12,$B34)","v":"1900-01-21"},"1900-02-21","1900-03-21","1900-04-21","1900-05-21","1900-06-21","1900-07-21","1900-08-21","1900-09-21","1900-10-21","1900-11-21","1900-12-21"]
[null,22,"1900-01-22","1900-02-22","1900-03-22","1900-04-22","1900-05-22","1900-06-22","1900-07-22","1900-08-22","1900-09-22","1900-10-22","1900-11-22","1900-12-22"]
[null,23,"1900-01-23","1900-02-23","1900-03-23","1900-04-23","1900-05-23","1900-06-23","1900-07-23","1900-08-23","1900-09-23","1900-10-23","1900-11-23","1900-12-23"]
[null,24,"1900-01-24","1900-02-24","1900-03-24","1900-04-24","1900-05-24","1900-06-24","1900-07-24","1900-08-24","1900-09-24","1900-10-24","1900-11-24","1900-12-24"]
[null,25,"1900-01-25","1900-02-25","1900-03-25","1900-04-25","1900-05-25","1900-06-25","1900-07-25","1900-08-25","1900-09-25","1900-10-25","1900-11-25","1900-12-25"]
[null,26,"1900-01-26","1900-02-26","1900-03-26","1900-04-26","1900-05-26","1900-06-26","1900-07-26","1900-08-26","1900-09-26","1900-10-26","1900-11-26","1900-12-26"]
[null,27,"1900-01-27","1900-02-27","1900-03-27","1900-04-27","1900-05-27","1900-06-27","1900-07-27","1900-08-27","1900-09-27","1900-10-27","1900-11-27","1900-12-27"]
[null,28,"1900-01-28","1900-02-28","1900-03-28","1900-04-28","1900-05-28","1900-06-28","1900-07-28","1900-08-28","1900-09-28","1900-10-28","1900-11-28","1900-12-28"]
[null,29,"1900-01-29",60,"1900-03-29","1900-04-29","1900-05-29","1900-06-29","1900-07-29","1900-08-29","1900-09-29","1900-10-29","1900-11-29","1900-12-29"]
[null,30,"1900-01-30","1900-03-01","1900-03-30","1900-04-30","1900-05-30","1900-06-30","1900-07-30","1900-08-30","1900-09-30","1900-10-30","1900-11-30","1900-12-30"]
[null,31,"1900-01-31","1900-03-02","1900-03-31","1900-05-01","1900-05-31","1900-07-01","1900-07-31","1900-08-31",null,"1900-10-31","1900-12-01",{"$f":"DATE(annee_choix,N$12,$B44)","v":"1900-12-31"}]
[]
[]
[]
[null,null,null,null,{"$f":"E1","v":"Suivi métrologique des équipements - Calendrier du suivi métrologique des équipements -"},null,null,null,null,null,null,{"$f":"L1","v":"Formulaire d'enregistrement "}]
[]
[]
[{"$f":"A4","v":"LABORATOIRE DE BIOLOGIE MEDICALE"},null,null,null,null,null,null,null,null,null,null,{"$f":"L4","v":"Réf. : LB/FE/141"}]
[null,null,null,null,null,null,null,null,null,null,null,{"$f":"L5","v":"Version : 2"}]
[null,null,null,null,null,null,null,null,null,null,null,{"$f":"L6","v":"date d'application : 01/03/2016"}]
[]
[]
[]
[null,null,null,"En prévision pour la semaine du"]
[null,null,null,"Pipettes Critiques","Pipettes Non Critiques","Sondes","Réveil et minuteurs","Cartographies","Centrifugeuses","Microscopes","Maintenance datalogger"]
[]
[]
[]
[]
[]
[]
[]
[]
[]
[]
[]
[]
[]
[]
[]
[]
[]
[]
[]
[null,null,null,"Réalisé le "]
[null,null,null,"Pipettes Critiques","Pipettes Non Critiques","Sondes","Réveil et minuteurs","Cartographies","Centrifugeuses","Microscopes","Maintenance datalogger"]

{"sheet":"Modele_CALS","index":3,"n_rows":0,"n_cols":0,"rows_kept":0,"cut":false,"hidden":false,"merged":[]}

{"sheet":"Modele_CEN","index":4,"n_rows":0,"n_cols":0,"rows_kept":0,"cut":false,"hidden":false,"merged":[]}

{"sheet":"Modele_ENC","index":5,"n_rows":0,"n_cols":0,"rows_kept":0,"cut":false,"hidden":false,"merged":[]}

{"sheet":"Modele_MIC","index":6,"n_rows":0,"n_cols":0,"rows_kept":0,"cut":false,"hidden":false,"merged":[]}

{"sheet":"Modele_PCE","index":7,"n_rows":0,"n_cols":0,"rows_kept":0,"cut":false,"hidden":false,"merged":[]}

{"sheet":"Modele_PIP","index":8,"n_rows":0,"n_cols":0,"rows_kept":0,"cut":false,"hidden":false,"merged":[]}

{"sheet":"Modele_PDP","index":9,"n_rows":0,"n_cols":0,"rows_kept":0,"cut":false,"hidden":false,"merged":[]}

{"sheet":"Modele_REV","index":10,"n_rows":0,"n_cols":0,"rows_kept":0,"cut":false,"hidden":false,"merged":[]}

{"sheet":"Modele_SON","index":11,"n_rows":0,"n_cols":0,"rows_kept":0,"cut":false,"hidden":false,"merged":[]}

{"sheet":"Modele_Synthese_PDP","index":12,"n_rows":0,"n_cols":0,"rows_kept":0,"cut":false,"hidden":false,"merged":[]}

{"sheet":"Synthese des centrifugeuses","index":13,"n_rows":0,"n_cols":0,"rows_kept":0,"cut":false,"hidden":false,"merged":[]}

{"sheet":"Synthese des enceintes","index":14,"n_rows":0,"n_cols":0,"rows_kept":0,"cut":false,"hidden":false,"merged":[]}

{"sheet":"Synthese des microscopes","index":15,"n_rows":0,"n_cols":0,"rows_kept":0,"cut":false,"hidden":false,"merged":[]}

{"sheet":"Synthese des pipettes","index":16,"n_rows":0,"n_cols":0,"rows_kept":0,"cut":false,"hidden":false,"merged":[]}

{"sheet":"Synthese des réveils&minuteurs","index":17,"n_rows":0,"n_cols":0,"rows_kept":0,"cut":false,"hidden":false,"merged":[]}

{"sheet":"Synthese des sondes","index":18,"n_rows":0,"n_cols":0,"rows_kept":0,"cut":false,"hidden":false,"merged":[]}

{"sheet":"Deconta a suppr","index":19,"n_rows":0,"n_cols":0,"rows_kept":0,"cut":false,"hidden":false,"merged":[]}

{"sheet":"ENC_AG1","index":20,"n_rows":0,"n_cols":0,"rows_kept":0,"cut":false,"hidden":false,"merged":[]}

{"sheet":"ENC_MC8","index":21,"n_rows":0,"n_cols":0,"rows_kept":0,"cut":false,"hidden":false,"merged":[]}

{"sheet":"ENC_BC3","index":22,"n_rows":0,"n_cols":0,"rows_kept":0,"cut":false,"hidden":false,"merged":[]}

{"sheet":"ENC_CHR1","index":23,"n_rows":0,"n_cols":0,"rows_kept":0,"cut":false,"hidden":false,"merged":[]}

{"sheet":"ENC_E-07","index":24,"n_rows":0,"n_cols":0,"rows_kept":0,"cut":false,"hidden":false,"merged":[]}

{"sheet":"ENC_IR1","index":25,"n_rows":0,"n_cols":0,"rows_kept":0,"cut":false,"hidden":false,"merged":[]}

{"sheet":"ENC_E-06","index":26,"n_rows":0,"n_cols":0,"rows_kept":0,"cut":false,"hidden":false,"merged":[]}

{"sheet":"ENC_E-15","index":27,"n_rows":0,"n_cols":0,"rows_kept":0,"cut":false,"hidden":false,"merged":[]}

{"sheet":"ENC_HR1","index":28,"n_rows":0,"n_cols":0,"rows_kept":0,"cut":false,"hidden":false,"merged":[]}

{"sheet":"ENC_IR2","index":29,"n_rows":0,"n_cols":0,"rows_kept":0,"cut":false,"hidden":false,"merged":[]}

{"sheet":"ENC_MC1","index":30,"n_rows":0,"n_cols":0,"rows_kept":0,"cut":false,"hidden":false,"merged":[]}

{"sheet":"ENC_MC16","index":31,"n_rows":0,"n_cols":0,"rows_kept":0,"cut":false,"hidden":false,"merged":[]}

{"sheet":"ENC_MC4","index":32,"n_rows":0,"n_cols":0,"rows_kept":0,"cut":false,"hidden":false,"merged":[]}

{"sheet":"ENC_MC5","index":33,"n_rows":0,"n_cols":0,"rows_kept":0,"cut":false,"hidden":false,"merged":[]}

{"sheet":"ENC_MC7","index":34,"n_rows":0,"n_cols":0,"rows_kept":0,"cut":false,"hidden":false,"merged":[]}

{"sheet":"ENC_Frigo1","index":35,"n_rows":0,"n_cols":0,"rows_kept":0,"cut":false,"hidden":false,"merged":[]}

{"sheet":"ENC_IC1","index":36,"n_rows":0,"n_cols":0,"rows_kept":0,"cut":false,"hidden":false,"merged":[]}

{"sheet":"ENC_IC4","index":37,"n_rows":0,"n_cols":0,"rows_kept":0,"cut":false,"hidden":false,"merged":[]}

{"sheet":"ENC_MC15","index":38,"n_rows":0,"n_cols":0,"rows_kept":0,"cut":false,"hidden":false,"merged":[]}

{"sheet":"ENC_MC6","index":39,"n_rows":0,"n_cols":0,"rows_kept":0,"cut":false,"hidden":false,"merged":[]}

{"sheet":"ENC_MC2","index":40,"n_rows":0,"n_cols":0,"rows_kept":0,"cut":false,"hidden":false,"merged":[]}

{"sheet":"ENC_HC1","index":41,"n_rows":0,"n_cols":0,"rows_kept":0,"cut":false,"hidden":false,"merged":[]}

{"sheet":"ENC_E-14","index":42,"n_rows":0,"n_cols":0,"rows_kept":0,"cut":false,"hidden":false,"merged":[]}

{"sheet":"ENC_Frigo2","index":43,"n_rows":0,"n_cols":0,"rows_kept":0,"cut":false,"hidden":false,"merged":[]}

{"sheet":"ENC_HR2","index":44,"n_rows":0,"n_cols":0,"rows_kept":0,"cut":false,"hidden":false,"merged":[]}

{"sheet":"ENC_IR4","index":45,"n_rows":0,"n_cols":0,"rows_kept":0,"cut":false,"hidden":false,"merged":[]}

{"sheet":"ENC_MC10","index":46,"n_rows":0,"n_cols":0,"rows_kept":0,"cut":false,"hidden":false,"merged":[]}

{"sheet":"ENC_BR3","index":47,"n_rows":0,"n_cols":0,"rows_kept":0,"cut":false,"hidden":false,"merged":[]}

{"sheet":"ENC_E-04","index":48,"n_rows":0,"n_cols":0,"rows_kept":0,"cut":false,"hidden":false,"merged":[]}

{"sheet":"ENC_HR17","index":49,"n_rows":0,"n_cols":0,"rows_kept":0,"cut":false,"hidden":false,"merged":[]}

{"sheet":"ENC_E-02","index":50,"n_rows":0,"n_cols":0,"rows_kept":0,"cut":false,"hidden":false,"merged":[]}

{"sheet":"ENC_IC3","index":51,"n_rows":0,"n_cols":0,"rows_kept":0,"cut":false,"hidden":false,"merged":[]}

{"sheet":"ENC_E-09","index":52,"n_rows":0,"n_cols":0,"rows_kept":0,"cut":false,"hidden":false,"merged":[]}

{"sheet":"ENC_E-13","index":53,"n_rows":0,"n_cols":0,"rows_kept":0,"cut":false,"hidden":false,"merged":[]}

{"sheet":"ENC_BC1","index":54,"n_rows":0,"n_cols":0,"rows_kept":0,"cut":false,"hidden":false,"merged":[]}

{"sheet":"ENC_E-18","index":55,"n_rows":0,"n_cols":0,"rows_kept":0,"cut":false,"hidden":false,"merged":[]}

{"sheet":"ENC_HR16","index":56,"n_rows":0,"n_cols":0,"rows_kept":0,"cut":false,"hidden":false,"merged":[]}

{"sheet":"ENC_E-16","index":57,"n_rows":0,"n_cols":0,"rows_kept":0,"cut":false,"hidden":false,"merged":[]}

{"sheet":"ENC_BC2","index":58,"n_rows":0,"n_cols":0,"rows_kept":0,"cut":false,"hidden":false,"merged":[]}

{"sheet":"ENC_C1","index":59,"n_rows":0,"n_cols":0,"rows_kept":0,"cut":false,"hidden":false,"merged":[]}

{"sheet":"ENC_E-10","index":60,"n_rows":0,"n_cols":0,"rows_kept":0,"cut":false,"hidden":false,"merged":[]}

{"sheet":"ENC_E-17","index":61,"n_rows":0,"n_cols":0,"rows_kept":0,"cut":false,"hidden":false,"merged":[]}

{"sheet":"ENC_E-11","index":62,"n_rows":0,"n_cols":0,"rows_kept":0,"cut":false,"hidden":false,"merged":[]}

{"sheet":"ENC_E-19","index":63,"n_rows":0,"n_cols":0,"rows_kept":0,"cut":false,"hidden":false,"merged":[]}

{"sheet":"ENC_BR2","index":64,"n_rows":0,"n_cols":0,"rows_kept":0,"cut":false,"hidden":false,"merged":[]}

{"sheet":"ENC_CHR2","index":65,"n_rows":0,"n_cols":0,"rows_kept":0,"cut":false,"hidden":false,"merged":[]}

{"sheet":"ENC_E-12","index":66,"n_rows":0,"n_cols":0,"rows_kept":0,"cut":false,"hidden":false,"merged":[]}

{"sheet":"ENC_E-03","index":67,"n_rows":0,"n_cols":0,"rows_kept":0,"cut":false,"hidden":false,"merged":[]}

{"sheet":"ENC_E-08","index":68,"n_rows":0,"n_cols":0,"rows_kept":0,"cut":false,"hidden":false,"merged":[]}

{"sheet":"ENC_E-05","index":69,"n_rows":0,"n_cols":0,"rows_kept":0,"cut":false,"hidden":false,"merged":[]}

{"sheet":"ENC_C16","index":70,"n_rows":0,"n_cols":0,"rows_kept":0,"cut":false,"hidden":false,"merged":[]}

{"sheet":"ENC_BR8","index":71,"n_rows":0,"n_cols":0,"rows_kept":0,"cut":false,"hidden":false,"merged":[]}

{"sheet":"ENC_E-01","index":72,"n_rows":0,"n_cols":0,"rows_kept":0,"cut":false,"hidden":false,"merged":[]}

{"sheet":"ENC_BR6","index":73,"n_rows":0,"n_cols":0,"rows_kept":0,"cut":false,"hidden":false,"merged":[]}

{"sheet":"ENC_CHC2","index":74,"n_rows":0,"n_cols":0,"rows_kept":0,"cut":false,"hidden":false,"merged":[]}

{"sheet":"ENC_BR4","index":75,"n_rows":0,"n_cols":0,"rows_kept":0,"cut":false,"hidden":false,"merged":[]}

{"sheet":"ENC_BR7","index":76,"n_rows":0,"n_cols":0,"rows_kept":0,"cut":false,"hidden":false,"merged":[]}

{"sheet":"ENC_BR1","index":77,"n_rows":0,"n_cols":0,"rows_kept":0,"cut":false,"hidden":false,"merged":[]}

{"sheet":"ENC_MR13","index":78,"n_rows":0,"n_cols":0,"rows_kept":0,"cut":false,"hidden":false,"merged":[]}

{"sheet":"ENC_MR12","index":79,"n_rows":0,"n_cols":0,"rows_kept":0,"cut":false,"hidden":false,"merged":[]}

{"sheet":"ENC_MR11","index":80,"n_rows":0,"n_cols":0,"rows_kept":0,"cut":false,"hidden":false,"merged":[]}

{"sheet":"ENC_MR1","index":81,"n_rows":0,"n_cols":0,"rows_kept":0,"cut":false,"hidden":false,"merged":[]}

{"sheet":"ENC_MR10","index":82,"n_rows":0,"n_cols":0,"rows_kept":0,"cut":false,"hidden":false,"merged":[]}

{"sheet":"ENC_MC9","index":83,"n_rows":0,"n_cols":0,"rows_kept":0,"cut":false,"hidden":false,"merged":[]}

{"sheet":"ENC_MR14","index":84,"n_rows":0,"n_cols":0,"rows_kept":0,"cut":false,"hidden":false,"merged":[]}

{"sheet":"ENC_MR4","index":85,"n_rows":0,"n_cols":0,"rows_kept":0,"cut":false,"hidden":false,"merged":[]}

{"sheet":"ENC_MR15","index":86,"n_rows":0,"n_cols":0,"rows_kept":0,"cut":false,"hidden":false,"merged":[]}

{"sheet":"ENC_MR16","index":87,"n_rows":0,"n_cols":0,"rows_kept":0,"cut":false,"hidden":false,"merged":[]}

{"sheet":"ENC_MR17","index":88,"n_rows":0,"n_cols":0,"rows_kept":0,"cut":false,"hidden":false,"merged":[]}

{"sheet":"ENC_MR2","index":89,"n_rows":0,"n_cols":0,"rows_kept":0,"cut":false,"hidden":false,"merged":[]}

{"sheet":"ENC_MR8","index":90,"n_rows":0,"n_cols":0,"rows_kept":0,"cut":false,"hidden":false,"merged":[]}

{"sheet":"ENC_MR5","index":91,"n_rows":0,"n_cols":0,"rows_kept":0,"cut":false,"hidden":false,"merged":[]}

{"sheet":"ENC_MR6","index":92,"n_rows":0,"n_cols":0,"rows_kept":0,"cut":false,"hidden":false,"merged":[]}

{"sheet":"ENC_MR9","index":93,"n_rows":0,"n_cols":0,"rows_kept":0,"cut":false,"hidden":false,"merged":[]}

{"sheet":"ENC_PFC1","index":94,"n_rows":0,"n_cols":0,"rows_kept":0,"cut":false,"hidden":false,"merged":[]}

{"sheet":"ENC_PC1","index":95,"n_rows":0,"n_cols":0,"rows_kept":0,"cut":false,"hidden":false,"merged":[]}

{"sheet":"ENC_PC2","index":96,"n_rows":0,"n_cols":0,"rows_kept":0,"cut":false,"hidden":false,"merged":[]}

{"sheet":"ENC_PFC2","index":97,"n_rows":0,"n_cols":0,"rows_kept":0,"cut":false,"hidden":false,"merged":[]}

{"sheet":"ENC_PR1","index":98,"n_rows":0,"n_cols":0,"rows_kept":0,"cut":false,"hidden":false,"merged":[]}

{"sheet":"ENC_PR2","index":99,"n_rows":0,"n_cols":0,"rows_kept":0,"cut":false,"hidden":false,"merged":[]}

{"sheet":"ENC_R1-14","index":100,"n_rows":0,"n_cols":0,"rows_kept":0,"cut":false,"hidden":false,"merged":[]}

{"sheet":"ENC_R16","index":101,"n_rows":0,"n_cols":0,"rows_kept":0,"cut":false,"hidden":false,"merged":[]}

{"sheet":"ENC_R16 ou Top 115","index":102,"n_rows":0,"n_cols":0,"rows_kept":0,"cut":false,"hidden":false,"merged":[]}

{"sheet":"ENC_R17","index":103,"n_rows":0,"n_cols":0,"rows_kept":0,"cut":false,"hidden":false,"merged":[]}

{"sheet":"ENC_R2-14","index":104,"n_rows":0,"n_cols":0,"rows_kept":0,"cut":false,"hidden":false,"merged":[]}

{"sheet":"Modele_CALE (2)","index":105,"n_rows":0,"n_cols":0,"rows_kept":0,"cut":false,"hidden":false,"merged":[]}

{"sheet":"PCE_Pièce 01","index":106,"n_rows":0,"n_cols":0,"rows_kept":0,"cut":false,"hidden":false,"merged":[]}

{"sheet":"PCE_Pièce 14","index":107,"n_rows":0,"n_cols":0,"rows_kept":0,"cut":false,"hidden":false,"merged":[]}

{"sheet":"PCE_Pièce 16","index":108,"n_rows":0,"n_cols":0,"rows_kept":0,"cut":false,"hidden":false,"merged":[]}

{"sheet":"PCE_Pièce 17","index":109,"n_rows":0,"n_cols":0,"rows_kept":0,"cut":false,"hidden":false,"merged":[]}

{"sheet":"PCE_Pièce 18","index":110,"n_rows":0,"n_cols":0,"rows_kept":0,"cut":false,"hidden":false,"merged":[]}

{"sheet":"PCE_Pièce 21","index":111,"n_rows":0,"n_cols":0,"rows_kept":0,"cut":false,"hidden":false,"merged":[]}

{"sheet":"PCE_Pièce 25","index":112,"n_rows":0,"n_cols":0,"rows_kept":0,"cut":false,"hidden":false,"merged":[]}

{"sheet":"PCE_Pièce 26","index":113,"n_rows":0,"n_cols":0,"rows_kept":0,"cut":false,"hidden":false,"merged":[]}

{"sheet":"PCE_Pièce 31","index":114,"n_rows":0,"n_cols":0,"rows_kept":0,"cut":false,"hidden":false,"merged":[]}

{"sheet":"PCE_Pièce 32","index":115,"n_rows":0,"n_cols":0,"rows_kept":0,"cut":false,"hidden":false,"merged":[]}

{"sheet":"PCE_Pièce 33","index":116,"n_rows":0,"n_cols":0,"rows_kept":0,"cut":false,"hidden":false,"merged":[]}

{"sheet":"PCE_Pièce 33BK","index":117,"n_rows":0,"n_cols":0,"rows_kept":0,"cut":false,"hidden":false,"merged":[]}

{"sheet":"PCE_Pièce 33Hyg","index":118,"n_rows":0,"n_cols":0,"rows_kept":0,"cut":false,"hidden":false,"merged":[]}

{"sheet":"PCE_Pièce 34","index":119,"n_rows":0,"n_cols":0,"rows_kept":0,"cut":false,"hidden":false,"merged":[]}

{"sheet":"PCE_Pièce 35","index":120,"n_rows":0,"n_cols":0,"rows_kept":0,"cut":false,"hidden":false,"merged":[]}

{"sheet":"PCE_Pièce 51","index":121,"n_rows":0,"n_cols":0,"rows_kept":0,"cut":false,"hidden":false,"merged":[]}

{"sheet":"PCE_Pièce 53","index":122,"n_rows":0,"n_cols":0,"rows_kept":0,"cut":false,"hidden":false,"merged":[]}

{"sheet":"PDP_2016","index":123,"n_rows":0,"n_cols":0,"rows_kept":0,"cut":false,"hidden":false,"merged":[]}

{"sheet":"SON_003","index":124,"n_rows":0,"n_cols":0,"rows_kept":0,"cut":false,"hidden":false,"merged":[]}

{"sheet":"SON_3577000000851","index":125,"n_rows":0,"n_cols":0,"rows_kept":0,"cut":false,"hidden":false,"merged":[]}

{"sheet":"SON_3677000000875","index":126,"n_rows":0,"n_cols":0,"rows_kept":0,"cut":false,"hidden":false,"merged":[]}

{"sheet":"SON_3777000000882","index":127,"n_rows":0,"n_cols":0,"rows_kept":0,"cut":false,"hidden":false,"merged":[]}

{"sheet":"SON_3877000000868","index":128,"n_rows":0,"n_cols":0,"rows_kept":0,"cut":false,"hidden":false,"merged":[]}

{"sheet":"SON_B1_BJE_52572 2013-1","index":129,"n_rows":0,"n_cols":0,"rows_kept":0,"cut":false,"hidden":false,"merged":[]}

{"sheet":"SON_E17C","index":130,"n_rows":0,"n_cols":0,"rows_kept":0,"cut":false,"hidden":false,"merged":[]}

{"sheet":"SON_E17D","index":131,"n_rows":0,"n_cols":0,"rows_kept":0,"cut":false,"hidden":false,"merged":[]}

{"sheet":"SON_E17E","index":132,"n_rows":0,"n_cols":0,"rows_kept":0,"cut":false,"hidden":false,"merged":[]}

{"sheet":"SON_E17F","index":133,"n_rows":0,"n_cols":0,"rows_kept":0,"cut":false,"hidden":false,"merged":[]}

{"sheet":"SON_E17G","index":134,"n_rows":0,"n_cols":0,"rows_kept":0,"cut":false,"hidden":false,"merged":[]}

{"sheet":"SON_E17H","index":135,"n_rows":0,"n_cols":0,"rows_kept":0,"cut":false,"hidden":false,"merged":[]}

{"sheet":"SON_E17I","index":136,"n_rows":0,"n_cols":0,"rows_kept":0,"cut":false,"hidden":false,"merged":[]}

{"sheet":"SON_E17J","index":137,"n_rows":0,"n_cols":0,"rows_kept":0,"cut":false,"hidden":false,"merged":[]}

{"sheet":"SON_E17K","index":138,"n_rows":0,"n_cols":0,"rows_kept":0,"cut":false,"hidden":false,"merged":[]}

{"sheet":"SON_E17L","index":139,"n_rows":0,"n_cols":0,"rows_kept":0,"cut":false,"hidden":false,"merged":[]}

{"sheet":"SON_E17M","index":140,"n_rows":0,"n_cols":0,"rows_kept":0,"cut":false,"hidden":false,"merged":[]}

{"sheet":"SON_E17N","index":141,"n_rows":0,"n_cols":0,"rows_kept":0,"cut":false,"hidden":false,"merged":[]}

{"sheet":"SON_E17P","index":142,"n_rows":0,"n_cols":0,"rows_kept":0,"cut":false,"hidden":false,"merged":[]}

{"sheet":"SON_E17Q","index":143,"n_rows":0,"n_cols":0,"rows_kept":0,"cut":false,"hidden":false,"merged":[]}

{"sheet":"SON_E3B4","index":144,"n_rows":0,"n_cols":0,"rows_kept":0,"cut":false,"hidden":false,"merged":[]}

{"sheet":"SON_E3B5","index":145,"n_rows":0,"n_cols":0,"rows_kept":0,"cut":false,"hidden":false,"merged":[]}

{"sheet":"SON_E3B6","index":146,"n_rows":0,"n_cols":0,"rows_kept":0,"cut":false,"hidden":false,"merged":[]}

{"sheet":"SON_E3B7","index":147,"n_rows":0,"n_cols":0,"rows_kept":0,"cut":false,"hidden":false,"merged":[]}

{"sheet":"SON_E3B8","index":148,"n_rows":0,"n_cols":0,"rows_kept":0,"cut":false,"hidden":false,"merged":[]}

{"sheet":"SON_E3B9","index":149,"n_rows":0,"n_cols":0,"rows_kept":0,"cut":false,"hidden":false,"merged":[]}

{"sheet":"SON_E3BB","index":150,"n_rows":0,"n_cols":0,"rows_kept":0,"cut":false,"hidden":false,"merged":[]}

{"sheet":"SON_E3BC","index":151,"n_rows":0,"n_cols":0,"rows_kept":0,"cut":false,"hidden":false,"merged":[]}

{"sheet":"SON_E3BD","index":152,"n_rows":0,"n_cols":0,"rows_kept":0,"cut":false,"hidden":false,"merged":[]}

{"sheet":"SON_E3BE","index":153,"n_rows":0,"n_cols":0,"rows_kept":0,"cut":false,"hidden":false,"merged":[]}

{"sheet":"SON_E3BF","index":154,"n_rows":0,"n_cols":0,"rows_kept":0,"cut":false,"hidden":false,"merged":[]}

{"sheet":"SON_E3BG","index":155,"n_rows":0,"n_cols":0,"rows_kept":0,"cut":false,"hidden":false,"merged":[]}

{"sheet":"SON_E3BH","index":156,"n_rows":0,"n_cols":0,"rows_kept":0,"cut":false,"hidden":false,"merged":[]}

{"sheet":"SON_E3BI","index":157,"n_rows":0,"n_cols":0,"rows_kept":0,"cut":false,"hidden":false,"merged":[]}

{"sheet":"SON_E3BJ","index":158,"n_rows":0,"n_cols":0,"rows_kept":0,"cut":false,"hidden":false,"merged":[]}

{"sheet":"SON_E3BK","index":159,"n_rows":0,"n_cols":0,"rows_kept":0,"cut":false,"hidden":false,"merged":[]}

{"sheet":"SON_E3BL","index":160,"n_rows":0,"n_cols":0,"rows_kept":0,"cut":false,"hidden":false,"merged":[]}

{"sheet":"SON_E3BM","index":161,"n_rows":0,"n_cols":0,"rows_kept":0,"cut":false,"hidden":false,"merged":[]}

{"sheet":"SON_E3BN","index":162,"n_rows":0,"n_cols":0,"rows_kept":0,"cut":false,"hidden":false,"merged":[]}

{"sheet":"SON_E3BP","index":163,"n_rows":0,"n_cols":0,"rows_kept":0,"cut":false,"hidden":false,"merged":[]}

{"sheet":"SON_E3BQ","index":164,"n_rows":0,"n_cols":0,"rows_kept":0,"cut":false,"hidden":false,"merged":[]}

{"sheet":"SON_E3BR","index":165,"n_rows":0,"n_cols":0,"rows_kept":0,"cut":false,"hidden":false,"merged":[]}

{"sheet":"SON_E3BS","index":166,"n_rows":0,"n_cols":0,"rows_kept":0,"cut":false,"hidden":false,"merged":[]}

{"sheet":"SON_E3BT","index":167,"n_rows":0,"n_cols":0,"rows_kept":0,"cut":false,"hidden":false,"merged":[]}

{"sheet":"SON_E3BU","index":168,"n_rows":0,"n_cols":0,"rows_kept":0,"cut":false,"hidden":false,"merged":[]}

{"sheet":"SON_E3BV","index":169,"n_rows":0,"n_cols":0,"rows_kept":0,"cut":false,"hidden":false,"merged":[]}

{"sheet":"SON_E3BW","index":170,"n_rows":0,"n_cols":0,"rows_kept":0,"cut":false,"hidden":false,"merged":[]}

{"sheet":"SON_E3BX","index":171,"n_rows":0,"n_cols":0,"rows_kept":0,"cut":false,"hidden":false,"merged":[]}

{"sheet":"SON_E3BY","index":172,"n_rows":0,"n_cols":0,"rows_kept":0,"cut":false,"hidden":false,"merged":[]}

{"sheet":"SON_E3BZ","index":173,"n_rows":0,"n_cols":0,"rows_kept":0,"cut":false,"hidden":false,"merged":[]}

{"sheet":"SON_IETHX3ND","index":174,"n_rows":0,"n_cols":0,"rows_kept":0,"cut":false,"hidden":false,"merged":[]}

{"sheet":"SON_IETHX3NE","index":175,"n_rows":0,"n_cols":0,"rows_kept":0,"cut":false,"hidden":false,"merged":[]}

{"sheet":"SON_P058","index":176,"n_rows":0,"n_cols":0,"rows_kept":0,"cut":false,"hidden":false,"merged":[]}

{"sheet":"SON_P05Q","index":177,"n_rows":0,"n_cols":0,"rows_kept":0,"cut":false,"hidden":false,"merged":[]}

{"sheet":"SON_P0E5","index":178,"n_rows":0,"n_cols":0,"rows_kept":0,"cut":false,"hidden":false,"merged":[]}

{"sheet":"SON_SETH 0009","index":179,"n_rows":0,"n_cols":0,"rows_kept":0,"cut":false,"hidden":false,"merged":[]}

{"sheet":"SON_SETH0010","index":180,"n_rows":0,"n_cols":0,"rows_kept":0,"cut":false,"hidden":false,"merged":[]}

{"sheet":"_Conforme","index":181,"n_rows":0,"n_cols":0,"rows_kept":0,"cut":false,"hidden":false,"merged":[]}

{"sheet":"_Conformité_CEN","index":182,"n_rows":0,"n_cols":0,"rows_kept":0,"cut":false,"hidden":false,"merged":[]}

{"sheet":"_Décontamination","index":183,"n_rows":0,"n_cols":0,"rows_kept":0,"cut":false,"hidden":false,"merged":[]}

{"sheet":"_ENC_Conforme sous restriction","index":184,"n_rows":0,"n_cols":0,"rows_kept":0,"cut":false,"hidden":false,"merged":[]}

{"sheet":"_Non_Conforme","index":185,"n_rows":0,"n_cols":0,"rows_kept":0,"cut":false,"hidden":false,"merged":[]}

{"sheet":"_Pdf","index":186,"n_rows":0,"n_cols":0,"rows_kept":0,"cut":false,"hidden":false,"merged":[]}

{"sheet":"_Zone_Impression","index":187,"n_rows":0,"n_cols":0,"rows_kept":0,"cut":false,"hidden":false,"merged":[]}

{"sheet":"_Zone_ImpressionSousrestriction","index":188,"n_rows":0,"n_cols":0,"rows_kept":0,"cut":false,"hidden":false,"merged":[]}